[Event "2026 European Womens Championship"]
[Site "Batumi, GE"]
[Date "2026.05.29"]
[Round "5"]
[White "Kalandadze, Mariam"]
[Black "Urh, Zala"]
[Result "0-1"]
[Board "101"]
[TimeControl "5400+30"]
[WhiteFideId "13621122"]
[BlackFideId "14611481"]
[WhiteElo "1892"]
[BlackElo "2263"]
[BlackTitle "WIM"]
[WhiteClock "0:00:58"]
[BlackClock "0:02:26"]
[Variant "Standard"]

1. d4 {[%clk 1:30:57]}  Nf6 {[%clk 1:30:56]} 2. Nf3 {[%clk 1:31:16]}  d5 {[%clk 1:31:19]} 3. e3 {[%clk 1:31:39]}  g6 {[%clk 1:27:50]}
4. b3 {[%clk 1:30:19]}  Bg7 {[%clk 1:27:57]} 5. Bb2 {[%clk 1:30:43]}  O-O {[%clk 1:26:59]} 6. Bd3 {[%clk 1:31:03]}  c5 {[%clk 1:23:28]}
7. O-O {[%clk 1:30:59]}  cxd4 {[%clk 1:21:54]} 8. exd4 {[%clk 1:28:35]}  Nc6 {[%clk 1:21:29]} 9. a3 {[%clk 1:20:56]}  Qc7 {[%clk 1:15:28]}
10. h3 {[%clk 1:15:57]}  Nh5 {[%clk 1:08:18]} 11. Nc3 {[%clk 1:07:52]}  Nf4 {[%clk 1:04:26]} 12. Ne2 {[%clk 1:07:12]}  Nxd3 {[%clk 1:03:04]}
13. Qxd3 {[%clk 1:07:35]}  Bf5 {[%clk 1:01:02]} 14. Qd2 {[%clk 1:06:42]}  Rac8 {[%clk 0:58:01]} 15. Rac1 {[%clk 0:53:48]}  Rfd8 {[%clk 0:56:33]}
16. Rfe1 {[%clk 0:52:22]}  Be4 {[%clk 0:39:48]} 17. Qe3 {[%clk 0:49:14]}  Bxf3 {[%clk 0:29:00]} 18. Qxf3 {[%clk 0:47:56]}  e6 {[%clk 0:29:26]}
19. Bc3 {[%clk 0:35:27]}  Ne7 {[%clk 0:25:22]} 20. Bd2 {[%clk 0:31:50]}  Nf5 {[%clk 0:25:33]} 21. c3 {[%clk 0:31:44]}  Qb6 {[%clk 0:20:37]}
22. Rb1 {[%clk 0:29:05]}  Nd6 {[%clk 0:20:58]} 23. Ng3 {[%clk 0:28:31]}  Rc6 {[%clk 0:19:53]} 24. a4 {[%clk 0:27:23]}  Rdc8 {[%clk 0:19:26]}
25. h4 {[%clk 0:22:51]}  h5 {[%clk 0:19:34]} 26. Qf4 {[%clk 0:20:04]}  Qd8 {[%clk 0:17:39]} 27. Kh2 {[%clk 0:16:07]}  Qf6 {[%clk 0:10:42]}
28. Qxf6 {[%clk 0:16:30]}  Bxf6 {[%clk 0:11:08]} 29. Kh3 {[%clk 0:16:55]}  Bd8 {[%clk 0:11:04]} 30. f3 {[%clk 0:17:21]}  Ba5 {[%clk 0:08:38]}
31. Ne2 {[%clk 0:15:20]}  Nf5 {[%clk 0:08:56]} 32. g4 {[%clk 0:12:11]}  hxg4+ {[%clk 0:08:46]} 33. Kxg4 {[%clk 0:11:40]}  Ng7 {[%clk 0:05:51]}
34. Rh1 {[%clk 0:08:08]}  Nh5 {[%clk 0:04:47]} 35. b4 {[%clk 0:03:45]}  Bc7 {[%clk 0:05:00]} 36. f4 {[%clk 0:04:00]}  Nf6+ {[%clk 0:03:55]}
37. Kf3 {[%clk 0:04:24]}  Ne4 {[%clk 0:04:21]} 38. Be1 {[%clk 0:04:47]}  Kg7 {[%clk 0:03:51]} 39. Ke3 {[%clk 0:01:41]}  Rh8 {[%clk 0:03:14]}
40. Kd3 {[%clk 0:02:10]}  Bd8 {[%clk 0:02:11]} 41. Rc1 {[%clk 0:00:46]}  Nd6 {[%clk 0:21:00]} 42. Ng1 {[%clk 0:24:15]}  Nc4 {[%clk 0:17:27]}
43. Rc2 {[%clk 0:23:32]}  Ra6 {[%clk 0:15:55]} 44. a5 {[%clk 0:20:53]}  b6 {[%clk 0:13:51]} 45. axb6 {[%clk 0:21:17]}  axb6 {[%clk 0:14:17]}
46. Nf3 {[%clk 0:19:22]}  Be7 {[%clk 0:12:52]} 47. Rch2 {[%clk 0:05:59]}  Ra3 {[%clk 0:09:19]} 48. Ke2 {[%clk 0:03:53]}  Rh5 {[%clk 0:09:26]}
49. Ne5 {[%clk 0:02:29]}  Nd6 {[%clk 0:09:34]} 50. Kd3 {[%clk 0:01:16]}  Nb5 {[%clk 0:05:21]} 51. Kc2 {[%clk 0:01:10]}  Rh8 {[%clk 0:05:14]}
52. Rh3 {[%clk 0:00:54]}  Ra1 {[%clk 0:03:31]} 53. Bg3 {[%clk 0:00:35]}  Rxh1 {[%clk 0:03:17]} 54. Rxh1 {[%clk 0:01:03]}  Rc8 {[%clk 0:03:43]}
55. Be1 {[%clk 0:00:35]}  Bxb4 {[%clk 0:02:13]} 56. Rh3 {[%clk 0:00:59]}  Ba5 {[%clk 0:01:37]} 57. Rd3 {[%clk 0:00:51]}  Nd6 {[%clk 0:01:01]}
58. Ng4 {[%clk 0:00:38]}  Nf5 {[%clk 0:00:51]} 59. Kd1 {[%clk 0:00:35]}  Rh8 {[%clk 0:00:39]} 60. Rh3 {[%clk 0:01:00]}  b5 {[%clk 0:01:00]}
61. Ne3 {[%clk 0:00:47]}  Nxe3+ {[%clk 0:00:47]} 62. Rxe3 {[%clk 0:01:14]}  Bd8 {[%clk 0:01:06]} 63. Rh3 {[%clk 0:01:41]}  Rh5 {[%clk 0:01:09]}
64. Ke2 {[%clk 0:01:56]}  Kf6 {[%clk 0:01:08]} 65. Kf3 {[%clk 0:02:24]}  Kf5 {[%clk 0:01:30]} 66. Bg3 {[%clk 0:01:36]}  Be7 {[%clk 0:01:08]}
67. Be1 {[%clk 0:01:51]}  Rh8 {[%clk 0:01:22]} 68. Rh2 {[%clk 0:01:09]}  Bd6 {[%clk 0:01:27]} 69. Rb2 {[%clk 0:01:22]}  Rb8 {[%clk 0:00:40]}
70. Bd2 {[%clk 0:01:25]}  Be7 {[%clk 0:00:42]} 71. Be1 {[%clk 0:01:49]}  Rb7 {[%clk 0:00:51]} 72. Rb3 {[%clk 0:01:42]}  Bd8 {[%clk 0:00:53]}
73. Ra3 {[%clk 0:01:31]}  Bc7 {[%clk 0:01:05]} 74. Bd2 {[%clk 0:01:52]}  Kf6 {[%clk 0:01:01]} 75. Kg4 {[%clk 0:02:16]}  Bd6 {[%clk 0:01:02]}
76. Rb3 {[%clk 0:02:12]}  Kg7 {[%clk 0:01:12]} 77. Rb1 {[%clk 0:01:48]}  Be7 {[%clk 0:01:36]} 78. Rb2 {[%clk 0:01:00]}  Kf8 {[%clk 0:01:41]}
79. Ra2 {[%clk 0:00:32]}  Bf6 {[%clk 0:01:11]} 80. h5 {[%clk 0:00:33]}  gxh5+ {[%clk 0:01:29]} 81. Kxh5 {[%clk 0:01:00]}  b4 {[%clk 0:01:11]}
82. cxb4 {[%clk 0:01:21]}  Bxd4 {[%clk 0:01:37]} 83. Ra5 {[%clk 0:01:26]}  Ke7 {[%clk 0:00:41]} 84. f5 {[%clk 0:01:50]}  Kf6 {[%clk 0:00:41]}
85. fxe6 {[%clk 0:02:01]}  fxe6 {[%clk 0:01:09]} 86. Kg4 {[%clk 0:02:22]}  Ke5 {[%clk 0:01:13]} 87. Ra6 {[%clk 0:02:18]}  Bb6 {[%clk 0:00:50]}
88. Kf3 {[%clk 0:02:08]}  d4 {[%clk 0:01:01]} 89. Ra8 {[%clk 0:00:34]}  Rf7+ {[%clk 0:00:49]} 90. Ke2 {[%clk 0:01:01]}  Ke4 {[%clk 0:01:12]}
91. Rh8 {[%clk 0:00:39]}  e5 {[%clk 0:00:43]} 92. Rh6 {[%clk 0:00:36]}  d3+ {[%clk 0:00:40]} 93. Ke1 {[%clk 0:01:02]}  Bf2+ {[%clk 0:00:40]}
94. Kd1 {[%clk 0:01:30]}  Bd4 {[%clk 0:01:06]} 95. Rh4+ {[%clk 0:00:50]}  Kd5 {[%clk 0:01:30]} 96. Rh3 {[%clk 0:00:47]}  Rf1+ {[%clk 0:01:24]}
97. Be1 {[%clk 0:01:14]}  Kc4 {[%clk 0:01:17]} 98. Rh4 {[%clk 0:01:25]}  Kb3 {[%clk 0:00:59]} 99. Kd2 {[%clk 0:00:33]}  Bc3+ {[%clk 0:00:57]}
100. Kxd3 {[%clk 0:00:59]}  Rxe1 {[%clk 0:01:10]} 101. b5 {[%clk 0:01:23]}  Rd1 {[%clk 0:01:17]} 102. Ke2 {[%clk 0:01:12]}  Rd6 {[%clk 0:01:32]}
103. Ke3 {[%clk 0:01:02]}  Rb6 {[%clk 0:01:51]} 104. Ke2 {[%clk 0:01:03]}  Rxb5 {[%clk 0:02:16]} 105. Kd3 {[%clk 0:01:05]}  Rd5 {[%clk 0:02:36]}
106. Ke3 {[%clk 0:01:21]}  Rd4 {[%clk 0:02:27]} 107. Rh2 {[%clk 0:01:40]}  Rg4 {[%clk 0:01:50]} 108. Re2 {[%clk 0:01:17]}  Kc4 {[%clk 0:02:00]}
109. Rc2 {[%clk 0:01:08]}  Rh4 {[%clk 0:02:11]} 110. Kf3 {[%clk 0:00:58]}  Kd3 {[%clk 0:02:26]} 0-1

[Event "2026 European Womens Championship"]
[Site "Batumi, GE"]
[Date "2026.05.29"]
[Round "5"]
[White "Tsolakidou, Stavroula"]
[Black "Krkyasharyan, Sona"]
[Result "1-0"]
[Board "102"]
[TimeControl "5400+30"]
[WhiteFideId "4264312"]
[BlackFideId "13316729"]
[WhiteElo "2455"]
[BlackElo "2063"]
[WhiteTitle "IM"]
[BlackTitle "WFM"]
[WhiteClock "0:28:32"]
[BlackClock "0:22:05"]
[Variant "Standard"]

1. e4 {[%clk 1:28:57]}  c5 {[%clk 1:30:54]} 2. Nf3 {[%clk 1:29:20]}  d6 {[%clk 1:31:20]} 3. Bb5+ {[%clk 1:29:31]}  Nd7 {[%clk 1:31:41]}
4. O-O {[%clk 1:29:51]}  a6 {[%clk 1:32:04]} 5. Be2 {[%clk 1:30:14]}  Ngf6 {[%clk 1:32:25]} 6. d3 {[%clk 1:30:40]}  e6 {[%clk 1:32:38]}
7. a4 {[%clk 1:30:55]}  b6 {[%clk 1:32:23]} 8. Nfd2 {[%clk 1:31:04]}  Nb8 {[%clk 1:31:25]} 9. f4 {[%clk 1:28:28]}  Nc6 {[%clk 1:31:50]}
10. Qe1 {[%clk 1:24:24]}  Be7 {[%clk 1:30:53]} 11. Nc3 {[%clk 1:22:34]}  Bb7 {[%clk 1:30:14]} 12. Bd1 {[%clk 1:13:55]}  Rb8 {[%clk 1:24:30]}
13. Nf3 {[%clk 1:08:52]}  O-O {[%clk 1:22:16]} 14. Qg3 {[%clk 1:03:56]}  Ba8 {[%clk 1:20:06]} 15. Qh3 {[%clk 0:54:01]}  b5 {[%clk 1:16:56]}
16. axb5 {[%clk 0:54:25]}  axb5 {[%clk 1:17:22]} 17. g4 {[%clk 0:54:18]}  b4 {[%clk 1:12:41]} 18. Ne2 {[%clk 0:54:36]}  Nd7 {[%clk 1:06:00]}
19. g5 {[%clk 0:54:15]}  d5 {[%clk 1:00:08]} 20. exd5 {[%clk 0:44:24]}  exd5 {[%clk 1:00:31]} 21. f5 {[%clk 0:44:43]}  Nce5 {[%clk 0:57:38]}
22. Nxe5 {[%clk 0:35:28]}  Nxe5 {[%clk 0:58:01]} 23. Bf4 {[%clk 0:35:35]}  Bd6 {[%clk 0:57:12]} 24. Ng3 {[%clk 0:30:26]}  Re8 {[%clk 0:55:41]}
25. Ra6 {[%clk 0:24:00]}  Rb6 {[%clk 0:51:22]} 26. Ra7 {[%clk 0:20:27]}  Bb7 {[%clk 0:41:35]} 27. f6 {[%clk 0:18:18]}  Qb8 {[%clk 0:33:01]}
28. Rxb7 {[%clk 0:17:13]}  Qxb7 {[%clk 0:32:34]} 29. fxg7 {[%clk 0:16:29]}  Ng6 {[%clk 0:28:25]} 30. Bxd6 {[%clk 0:14:43]}  Rxd6 {[%clk 0:28:49]}
31. Nh5 {[%clk 0:13:19]}  Re5 {[%clk 0:24:22]} 32. Nf6+ {[%clk 0:13:00]}  Rxf6 {[%clk 0:24:38]} 33. gxf6 {[%clk 0:13:26]}  Rg5+ {[%clk 0:25:02]}
34. Kh1 {[%clk 0:13:29]}  Ne5 {[%clk 0:24:51]} 35. d4 {[%clk 0:09:25]}  cxd4 {[%clk 0:24:22]} 36. Qh4 {[%clk 0:09:28]}  Rg6 {[%clk 0:23:58]}
37. Re1 {[%clk 0:04:46]}  Qa6 {[%clk 0:22:34]} 38. Qf4 {[%clk 0:03:44]}  Rxf6 {[%clk 0:20:49]} 39. Qxe5 {[%clk 0:04:05]}  Rf1+ {[%clk 0:21:10]}
40. Kg2 {[%clk 0:04:32]}  Rxe1 {[%clk 0:21:31]} 41. Qxe1 {[%clk 0:04:59]}  Qg6+ {[%clk 0:21:54]} 42. Qg3 {[%clk 0:03:54]}  Qe4+ {[%clk 0:22:15]}
43. Kf2 {[%clk 0:04:00]}  Qh1 {[%clk 0:22:05]} 44. Bh5 {[%clk 0:28:32]} 1-0

[Event "2026 European Womens Championship"]
[Site "Batumi, GE"]
[Date "2026.05.29"]
[Round "5"]
[White "Aghaverdiyeva, Maryam"]
[Black "Radeva, Viktoria"]
[Result "0-1"]
[Board "103"]
[TimeControl "5400+30"]
[WhiteFideId "13452509"]
[BlackFideId "2915405"]
[WhiteElo "2103"]
[BlackElo "2242"]
[WhiteTitle "WFM"]
[BlackTitle "WGM"]
[WhiteClock "0:01:16"]
[BlackClock "0:02:29"]
[Variant "Standard"]

1. e4 {[%clk 1:27:22]}  c5 {[%clk 1:30:55]} 2. Nf3 {[%clk 1:27:15]}  Nc6 {[%clk 1:31:20]} 3. d4 {[%clk 1:27:36]}  cxd4 {[%clk 1:31:46]}
4. Nxd4 {[%clk 1:28:01]}  e5 {[%clk 1:32:12]} 5. Nb5 {[%clk 1:28:09]}  d6 {[%clk 1:32:34]} 6. c4 {[%clk 1:28:33]}  Be6 {[%clk 1:32:50]}
7. N1c3 {[%clk 1:28:52]}  a6 {[%clk 1:33:15]} 8. Na3 {[%clk 1:29:17]}  g6 {[%clk 1:33:33]} 9. Be2 {[%clk 1:28:13]}  Bg7 {[%clk 1:33:52]}
10. Be3 {[%clk 1:28:35]}  Rc8 {[%clk 1:33:11]} 11. O-O {[%clk 1:27:39]}  Nf6 {[%clk 1:30:09]} 12. Qd2 {[%clk 1:16:45]}  O-O {[%clk 1:26:11]}
13. f3 {[%clk 1:13:39]}  Nd4 {[%clk 1:23:54]} 14. Rfd1 {[%clk 1:05:51]}  Nh5 {[%clk 1:17:14]} 15. Bf1 {[%clk 1:04:14]}  f5 {[%clk 0:59:31]}
16. exf5 {[%clk 0:57:50]}  Nxf5 {[%clk 0:52:27]} 17. Bf2 {[%clk 0:55:34]}  Nf4 {[%clk 0:49:43]} 18. Kh1 {[%clk 0:51:10]}  Nd4 {[%clk 0:43:17]}
19. Rac1 {[%clk 0:41:43]}  Kh8 {[%clk 0:40:15]} 20. b3 {[%clk 0:34:49]}  Bf5 {[%clk 0:29:56]} 21. Ne2 {[%clk 0:23:38]}  Ndxe2 {[%clk 0:15:21]}
22. Bxe2 {[%clk 0:23:46]}  Nxe2 {[%clk 0:13:00]} 23. Qxe2 {[%clk 0:24:08]}  Qa5 {[%clk 0:13:25]} 24. Qb2 {[%clk 0:17:34]}  Rfd8 {[%clk 0:12:30]}
25. Rd5 {[%clk 0:14:08]}  Qc7 {[%clk 0:12:49]} 26. Rcd1 {[%clk 0:12:46]}  Be6 {[%clk 0:12:10]} 27. R5d2 {[%clk 0:12:47]}  Qc6 {[%clk 0:11:53]}
28. Nc2 {[%clk 0:12:00]}  b5 {[%clk 0:10:11]} 29. Nb4 {[%clk 0:10:27]}  Qb7 {[%clk 0:09:45]} 30. cxb5 {[%clk 0:02:59]}  Qxb5 {[%clk 0:09:41]}
31. Nd5 {[%clk 0:02:52]}  Qb7 {[%clk 0:09:25]} 32. h3 {[%clk 0:01:05]}  Qf7 {[%clk 0:06:43]} 33. Bh4 {[%clk 0:00:33]}  Re8 {[%clk 0:06:44]}
34. Qa3 {[%clk 0:00:31]}  Rc5 {[%clk 0:06:39]} 35. Ne3 {[%clk 0:00:34]}  Bh6 {[%clk 0:05:58]} 36. Bf2 {[%clk 0:00:36]}  Rc3 {[%clk 0:05:59]}
37. Qxd6 {[%clk 0:00:34]}  Bxe3 {[%clk 0:05:11]} 38. Qxe5+ {[%clk 0:00:33]}  Qg7 {[%clk 0:05:35]} 39. Qxg7+ {[%clk 0:00:32]}  Kxg7 {[%clk 0:06:04]}
40. Bxe3 {[%clk 0:00:38]}  Rxe3 {[%clk 0:05:52]} 41. Rd6 {[%clk 0:01:01]}  Bc8 {[%clk 0:04:40]} 42. R1d2 {[%clk 0:29:43]}  Rc3 {[%clk 0:28:32]}
43. h4 {[%clk 0:28:16]}  Re6 {[%clk 0:24:36]} 44. R6d5 {[%clk 0:24:17]}  h5 {[%clk 0:21:54]} 45. Kh2 {[%clk 0:23:59]}  Rec6 {[%clk 0:21:44]}
46. Kg3 {[%clk 0:21:06]}  Be6 {[%clk 0:18:42]} 47. Rd8 {[%clk 0:19:59]}  Kf7 {[%clk 0:16:59]} 48. Kf4 {[%clk 0:19:47]}  Rc1 {[%clk 0:10:03]}
49. R8d4 {[%clk 0:17:05]}  R6c5 {[%clk 0:12:33]} 50. Kg3 {[%clk 0:14:37]}  Ra5 {[%clk 0:11:13]} 51. Re2 {[%clk 0:14:04]}  Bf5 {[%clk 0:08:38]}
52. Rd6 {[%clk 0:12:41]}  Rc2 {[%clk 0:07:26]} 53. Rd7+ {[%clk 0:11:59]}  Bxd7 {[%clk 0:07:45]} 54. Rxc2 {[%clk 0:12:24]}  Bf5 {[%clk 0:08:06]}
55. Rd2 {[%clk 0:11:23]}  Ke6 {[%clk 0:04:09]} 56. Kf4 {[%clk 0:10:06]}  Bb1 {[%clk 0:03:44]} 57. a4 {[%clk 0:10:25]}  Rc5 {[%clk 0:02:53]}
58. Rd4 {[%clk 0:08:58]}  Bc2 {[%clk 0:02:06]} 59. Rb4 {[%clk 0:08:33]}  Kd5 {[%clk 0:02:13]} 60. Rb6 {[%clk 0:06:41]}  Rc6 {[%clk 0:02:28]}
61. Rb8 {[%clk 0:05:47]}  Kd4 {[%clk 0:01:06]} 62. a5 {[%clk 0:04:58]}  Rc5 {[%clk 0:01:27]} 63. b4 {[%clk 0:05:05]}  Rf5 {[%clk 0:01:45]}
64. Kg3 {[%clk 0:05:30]}  Bd3 {[%clk 0:01:51]} 65. Rb6 {[%clk 0:05:31]}  Kc3 {[%clk 0:01:08]} 66. Rd6 {[%clk 0:03:23]}  Rf7 {[%clk 0:00:45]}
67. Kf2 {[%clk 0:02:51]}  Rb7 {[%clk 0:01:10]} 68. Ke3 {[%clk 0:02:59]}  Re7 {[%clk 0:01:11]} 69. Kf4 {[%clk 0:03:02]}  Re2 {[%clk 0:01:31]}
70. g4 {[%clk 0:03:01]}  hxg4 {[%clk 0:01:56]} 71. fxg4 {[%clk 0:00:33]}  Re4+ {[%clk 0:02:23]} 72. Kg5 {[%clk 0:00:40]}  Rxb4 {[%clk 0:02:48]}
73. Rd5 {[%clk 0:00:46]}  Kc4 {[%clk 0:02:57]} 74. Re5 {[%clk 0:00:56]}  Rb5 {[%clk 0:02:02]} 75. Rxb5 {[%clk 0:01:16]}  Kxb5 {[%clk 0:02:29]} 0-1

[Event "2026 European Womens Championship"]
[Site "Batumi, GE"]
[Date "2026.05.29"]
[Round "5"]
[White "Deak-Sala, Emilia"]
[Black "Tsetskhladze, Mariam"]
[Result "1-0"]
[Board "104"]
[TimeControl "5400+30"]
[WhiteFideId "795615"]
[BlackFideId "13623834"]
[WhiteElo "2086"]
[BlackElo "2234"]
[WhiteTitle "WFM"]
[BlackTitle "WFM"]
[WhiteClock "0:14:19"]
[BlackClock "0:00:34"]
[Variant "Standard"]

1. e4 {[%clk 1:29:27]}  c5 {[%clk 1:27:21]} 2. Nf3 {[%clk 1:29:52]}  Nc6 {[%clk 1:27:46]} 3. Bb5 {[%clk 1:30:18]}  g6 {[%clk 1:28:12]}
4. c3 {[%clk 1:30:43]}  Nf6 {[%clk 1:27:51]} 5. e5 {[%clk 1:31:03]}  Nd5 {[%clk 1:24:47]} 6. O-O {[%clk 1:30:54]}  Nc7 {[%clk 1:21:47]}
7. Ba4 {[%clk 1:30:49]}  Bg7 {[%clk 1:13:04]} 8. d4 {[%clk 1:29:42]}  cxd4 {[%clk 1:10:41]} 9. cxd4 {[%clk 1:30:06]}  O-O {[%clk 1:08:30]}
10. Qe2 {[%clk 1:24:48]}  d6 {[%clk 1:06:13]} 11. Rd1 {[%clk 1:25:11]}  Bd7 {[%clk 0:55:32]} 12. Nc3 {[%clk 1:18:03]}  Qc8 {[%clk 0:46:31]}
13. h3 {[%clk 1:06:22]}  dxe5 {[%clk 0:31:53]} 14. dxe5 {[%clk 1:06:19]}  a6 {[%clk 0:29:44]} 15. a3 {[%clk 0:51:09]}  b5 {[%clk 0:28:04]}
16. Bc2 {[%clk 0:51:32]}  Bf5 {[%clk 0:21:54]} 17. Be4 {[%clk 0:42:01]}  Bxe4 {[%clk 0:17:16]} 18. Qxe4 {[%clk 0:42:26]}  Qe6 {[%clk 0:14:34]}
19. Bf4 {[%clk 0:35:36]}  Rfd8 {[%clk 0:08:48]} 20. Rac1 {[%clk 0:34:28]}  Na5 {[%clk 0:07:06]} 21. Nd4 {[%clk 0:30:20]}  Qb6 {[%clk 0:07:13]}
22. b4 {[%clk 0:20:02]}  Nc4 {[%clk 0:07:34]} 23. Nc6 {[%clk 0:19:12]}  Re8 {[%clk 0:04:22]} 24. Rd7 {[%clk 0:18:21]}  Bf8 {[%clk 0:01:37]}
25. a4 {[%clk 0:15:52]}  f5 {[%clk 0:00:40]} 26. exf6 {[%clk 0:13:49]}  exf6 {[%clk 0:01:06]} 27. Qf3 {[%clk 0:14:02]}  Ne6 {[%clk 0:00:34]}
28. Nd5 {[%clk 0:13:55]}  Nd4 {[%clk 0:00:34]} 29. Nxf6+ {[%clk 0:14:19]} 1-0

[Event "2026 European Womens Championship"]
[Site "Batumi, GE"]
[Date "2026.05.29"]
[Round "5"]
[White "Tsirulnik, Maritsa"]
[Black "Bashylina, Luisa"]
[Result "1/2-1/2"]
[Board "105"]
[TimeControl "5400+30"]
[WhiteFideId "14118688"]
[BlackFideId "12983292"]
[WhiteElo "2028"]
[BlackElo "2208"]
[WhiteTitle "WFM"]
[BlackTitle "WFM"]
[WhiteClock "0:00:36"]
[BlackClock "0:22:28"]
[Variant "Standard"]

1. c4 {[%clk 1:27:19]}  e5 {[%clk 1:30:55]} 2. d3 {[%clk 1:27:19]}  Bb4+ {[%clk 1:29:37]} 3. Nd2 {[%clk 1:27:22]}  c5 {[%clk 1:28:28]}
4. Ngf3 {[%clk 1:25:35]}  Nc6 {[%clk 1:28:43]} 5. g3 {[%clk 1:25:26]}  Nge7 {[%clk 1:27:49]} 6. Bg2 {[%clk 1:25:33]}  O-O {[%clk 1:28:07]}
7. O-O {[%clk 1:25:56]}  d6 {[%clk 1:28:00]} 8. Nb3 {[%clk 1:22:24]}  Na5 {[%clk 1:22:57]} 9. Nbd2 {[%clk 1:18:51]}  Bxd2 {[%clk 1:07:34]}
10. Bxd2 {[%clk 1:18:42]}  Nac6 {[%clk 1:07:59]} 11. Bc3 {[%clk 1:15:36]}  h6 {[%clk 1:05:25]} 12. a3 {[%clk 1:14:45]}  a5 {[%clk 1:05:38]}
13. b3 {[%clk 1:14:55]}  Be6 {[%clk 1:04:55]} 14. e3 {[%clk 1:10:59]}  Ng6 {[%clk 0:55:31]} 15. d4 {[%clk 1:05:11]}  cxd4 {[%clk 0:48:20]}
16. exd4 {[%clk 1:04:12]}  Bg4 {[%clk 0:43:31]} 17. h3 {[%clk 0:46:54]}  exd4 {[%clk 0:41:13]} 18. Bxd4 {[%clk 0:43:59]}  Be6 {[%clk 0:39:46]}
19. Bb2 {[%clk 0:42:14]}  Nge5 {[%clk 0:37:53]} 20. Nd4 {[%clk 0:41:33]}  Nxd4 {[%clk 0:37:45]} 21. Qxd4 {[%clk 0:41:39]}  f6 {[%clk 0:29:34]}
22. Rad1 {[%clk 0:33:55]}  Qc8 {[%clk 0:25:41]} 23. g4 {[%clk 0:28:12]}  Rd8 {[%clk 0:24:23]} 24. f4 {[%clk 0:25:22]}  Nc6 {[%clk 0:22:56]}
25. Qc3 {[%clk 0:25:11]}  Qc7 {[%clk 0:21:14]} 26. Rfe1 {[%clk 0:22:19]}  Bf7 {[%clk 0:19:48]} 27. h4 {[%clk 0:19:50]}  Qb6+ {[%clk 0:19:23]}
28. Kf1 {[%clk 0:18:53]}  a4 {[%clk 0:17:02]} 29. b4 {[%clk 0:18:51]}  Rac8 {[%clk 0:16:33]} 30. Bf3 {[%clk 0:10:42]}  Qc7 {[%clk 0:15:26]}
31. g5 {[%clk 0:04:48]}  hxg5 {[%clk 0:14:33]} 32. hxg5 {[%clk 0:05:09]}  Na7 {[%clk 0:10:16]} 33. gxf6 {[%clk 0:04:56]}  Bxc4+ {[%clk 0:10:39]}
34. Kg2 {[%clk 0:04:17]}  Nb5 {[%clk 0:10:47]} 35. Qd2 {[%clk 0:03:31]}  Qf7 {[%clk 0:07:46]} 36. fxg7 {[%clk 0:03:03]}  d5 {[%clk 0:06:05]}
37. Re5 {[%clk 0:02:24]}  d4 {[%clk 0:06:05]} 38. Kf2 {[%clk 0:01:35]}  Bb3 {[%clk 0:03:46]} 39. Rc1 {[%clk 0:01:21]}  Nc3 {[%clk 0:04:14]}
40. Rh1 {[%clk 0:00:56]}  Nb1 {[%clk 0:03:05]} 41. Rg5 {[%clk 0:26:46]}  Qe6 {[%clk 0:29:16]} 42. Rh8+ {[%clk 0:15:39]}  Kf7 {[%clk 0:29:38]}
43. g8=Q+ {[%clk 0:05:17]}  Rxg8 {[%clk 0:29:52]} 44. Rh7+ {[%clk 0:03:53]}  Kf8 {[%clk 0:28:04]} 45. Qxd4 {[%clk 0:03:09]}  Rc2+ {[%clk 0:27:24]}
46. Kg3 {[%clk 0:03:30]}  Rxg5+ {[%clk 0:22:01]} 47. fxg5 {[%clk 0:03:55]}  Qe1+ {[%clk 0:22:27]} 48. Kf4 {[%clk 0:02:37]}  Rc4 {[%clk 0:21:45]}
49. Rh8+ {[%clk 0:02:52]}  Ke7 {[%clk 0:21:59]} 50. Rh7+ {[%clk 0:02:45]}  Kf8 {[%clk 0:22:06]} 51. Rh8+ {[%clk 0:01:07]}  Ke7 {[%clk 0:22:28]}
52. Rh7+ {[%clk 0:00:36]} 1/2-1/2

[Event "2026 European Womens Championship"]
[Site "Batumi, GE"]
[Date "2026.05.29"]
[Round "5"]
[White "Golsta, Madara"]
[Black "Zeliantsova, Kseniya"]
[Result "1-0"]
[Board "106"]
[TimeControl "5400+30"]
[WhiteFideId "11607386"]
[BlackFideId "13512617"]
[WhiteElo "2023"]
[BlackElo "2176"]
[BlackTitle "WFM"]
[WhiteClock "0:12:20"]
[BlackClock "0:00:32"]
[Variant "Standard"]

1. e4 {[%clk 1:30:57]}  d6 {[%clk 1:30:53]} 2. d4 {[%clk 1:31:15]}  Nf6 {[%clk 1:31:17]} 3. Nc3 {[%clk 1:31:28]}  g6 {[%clk 1:31:36]}
4. f4 {[%clk 1:31:40]}  Bg7 {[%clk 1:31:57]} 5. Nf3 {[%clk 1:31:54]}  O-O {[%clk 1:32:18]} 6. e5 {[%clk 1:29:55]}  dxe5 {[%clk 1:32:17]}
7. fxe5 {[%clk 1:30:13]}  Nd5 {[%clk 1:32:19]} 8. Bc4 {[%clk 1:30:08]}  Nxc3 {[%clk 1:32:04]} 9. bxc3 {[%clk 1:30:31]}  c5 {[%clk 1:32:27]}
10. O-O {[%clk 1:30:26]}  Bg4 {[%clk 1:31:30]} 11. Qd3 {[%clk 1:30:01]}  Nc6 {[%clk 1:25:48]} 12. Ng5 {[%clk 1:27:30]}  e6 {[%clk 1:23:48]}
13. h3 {[%clk 1:27:00]}  Bf5 {[%clk 1:21:32]} 14. Rxf5 {[%clk 1:27:11]}  exf5 {[%clk 1:20:54]} 15. e6 {[%clk 1:26:45]}  cxd4 {[%clk 1:06:30]}
16. exf7+ {[%clk 1:13:41]}  Kh8 {[%clk 1:06:23]} 17. Ne6 {[%clk 1:09:21]}  Qd6 {[%clk 0:58:02]} 18. Nxg7 {[%clk 1:06:33]}  Kxg7 {[%clk 0:54:50]}
19. cxd4 {[%clk 1:03:03]}  b5 {[%clk 0:37:08]} 20. Bxb5 {[%clk 0:57:47]}  Nb4 {[%clk 0:28:28]} 21. Qd2 {[%clk 0:48:01]}  Nd5 {[%clk 0:21:55]}
22. Qh6+ {[%clk 0:45:34]}  Kh8 {[%clk 0:20:51]} 23. c4 {[%clk 0:33:16]}  Nf6 {[%clk 0:18:15]} 24. Qf4 {[%clk 0:31:24]}  Qb6 {[%clk 0:15:42]}
25. Ba4 {[%clk 0:23:51]}  Rxf7 {[%clk 0:13:56]} 26. Bb3 {[%clk 0:22:52]}  Re7 {[%clk 0:12:08]} 27. c5 {[%clk 0:21:49]}  Qa6 {[%clk 0:06:55]}
28. d5 {[%clk 0:19:02]}  Re4 {[%clk 0:04:44]} 29. Qf2 {[%clk 0:15:19]}  Rae8 {[%clk 0:02:18]} 30. d6 {[%clk 0:15:15]}  Kg7 {[%clk 0:01:31]}
31. Bb2 {[%clk 0:15:08]}  Qc6 {[%clk 0:01:10]} 32. Rd1 {[%clk 0:13:46]}  Re2 {[%clk 0:01:00]} 33. Bxf6+ {[%clk 0:14:10]}  Kxf6 {[%clk 0:01:24]}
34. Qd4+ {[%clk 0:14:11]}  Kg5 {[%clk 0:00:47]} 35. Bd5 {[%clk 0:13:45]}  Qd7 {[%clk 0:00:38]} 36. Bf3 {[%clk 0:12:31]}  Re1+ {[%clk 0:00:48]}
37. Rxe1 {[%clk 0:12:37]}  Rxe1+ {[%clk 0:01:15]} 38. Kh2 {[%clk 0:11:36]}  Re6 {[%clk 0:00:40]} 39. c6 {[%clk 0:11:51]}  Qd8 {[%clk 0:00:38]}
40. d7 {[%clk 0:12:03]}  Qc7+ {[%clk 0:00:32]} 41. g3 {[%clk 0:12:20]} 1-0